Cogmind - Beta 16 @@@ ROGUE MODE // 2025.10.26 @ 21:07:15 Player: celerysam Result: Destroyed by AH-RKE(R) with Subdweller Laser Performance ------------- Evolutions (0) 0 Regions Visited (2) 400 Robots Destroyed (28) 140 Value Destroyed (713) 713 Prototype IDs (12) 240 Alien Tech Used (0) 0 Bonus (0) 0 TOTAL SCORE: 1493 Bonus ------- None Cogmind --------- Core Integrity 0/250 Matter 272/300 Energy 250/250 System Corruption 0% Temperature Cool (6) Movement Rolling (120) Ox2 Location -10/Subcaves Parts ------- > --- POWER (1) -------- Ion Engine > --- PROPULSION (2) --- Wheel Compact Wheel > --- UTILITY (2) ------ High-capacity Storage Unit Gun Armor > --- WEAPON (2+1) ----- Autogun (+) Grenade Launcher Makeshift Hammer > --- INVENTORY (20) --- Makeshift Power Source Wheel Makeshift Flight Unit Heat Sink Heat Sink Medium Matter Pod (100) Improved Targeting Computer Propulsion Shielding Scrap Shield Makeshift Hacking Suite Cobbler Unit EM Shotgun Medium Laser Light EM Pulse Cannon Makeshift Shrapnel Gun Grenade Launcher Datajack Ripper Peak State ------------ > --- POWER ------------ Makeshift Power Source > --- PROPULSION ------- Compact Wheel Subdweller Monowheel > --- UTILITY ---------- High-capacity Storage Unit Gun Armor > --- WEAPON ----------- Autogun Autogun Makeshift Shrapnel Gun Heavy Hammer > --- INVENTORY -------- Ion Engine Wheel Wheel Compact Wheel Makeshift Flight Unit Heat Sink Heat Sink Medium Matter Pod Improved Targeting Computer Improved Targeting Computer Propulsion Shielding EM Shotgun EM Shotgun Medium Laser Light EM Pulse Cannon Grenade Launcher Grenade Launcher Datajack [Rating: 29] Favorites ----------- Power Ion Engine Engine Ion Engine Propulsion Compact Wheel Leg Aluminum Leg Wheel Compact Wheel Utility High-capacity Storage Unit Device Heat Sink Storage High-capacity Storage Unit Protection Gun Armor Weapon Autogun Energy Gun Medium Laser Energy Cannon Light EM Pulse Cannon Ballistic Gun Autogun Launcher Grenade Launcher Impact Weapon Heavy Hammer Build | -11 -10 -10 ------- Run | Yrd Mat Sub Slots Evolved . | . . . Power . | . . . Propulsion . | . . . Utility . | . . . Weapon . | . . . Parts Attached 31 | 7 12 12 Power 4 | 1 2 1 Engine 4 | 1 2 1 Core . | . . . Reactor . | . . . Propulsion 10 | 2 4 4 Treads . | . . . Leg 2 | 2 . . Wheel 8 | . 4 4 Hover . | . . . Flight . | . . . Utility 4 | 1 2 1 Device 1 | . 1 . Storage 2 | 1 1 . Processor . | . . . Hackware . | . . . Protection 1 | . . 1 Artifact . | . . . Weapon 13 | 3 4 6 Energy Gun 5 | 2 3 . Energy Cannon 1 | . 1 . Ballistic Gun 4 | 1 . 3 Ballistic Cannon . | . . . Launcher 1 | . . 1 Special Weapon . | . . . Impact Weapon 2 | . . 2 Slashing Weapon . | . . . Piercing Weapon . | . . . Special Melee Weapon . | . . . Unidentified Prototypes . | . . . Parts Lost 8 | . 4 4 Power 3 | . 2 1 Propulsion 2 | . 1 1 Utility . | . . . Weapon 3 | . 1 2 Highest Loss Streak 3 | . 3 1 To Critical Strikes . | . . . Average Backups 17 | 4 15 18 Power . | . . . Propulsion 3 | 2 4 3 Utility 5 | . 3 6 Weapon 6 | 1 5 6 Tool/Special . | . . . Unused Backups 24 | . 4 20 Power 2 | . . 2 Propulsion 5 | . 2 3 Utility 9 | . . 9 Weapon 7 | . 2 5 Tool/Special 1 | . . 1 Average Slot Usage (%) 95 | . 91 98 Engine 11 | . 10 12 Wheel 23 | . 22 24 Device 7 | . 9 5 Storage 14 | . 17 12 Protection 3 | . . 6 Energy Gun 8 | . 20 . Energy Cannon 4 | . 4 4 Ballistic Gun 9 | . 3 12 Launcher 3 | . . 6 Impact Weapon 6 | . . 11 Peak Build Rating 29 | 6 10 29 Average Rating 14 | 3 8 19 On Entrance 5 | . 6 10 Avg Prop Armor Cover (%) . | . . . Naked Turns . | . . . Heaviest Build 61 | 12 52 61 Greatest Support 36 | 20 32 36 Greatest Overweight (x) 3 | . 3 3 Average Overweight (x) 1 | . 1 1 Largest Inventory Capacity 20 | 8 20 20 Average Capacity 19 | 6 19 20 Most Carried 20 | 6 20 20 Average Carried 17 | 4 15 19 Final Capacity 20 | 8 20 20 Final Carried 20 | 6 20 20 Class Distribution -------------------- 68% | Mutant 31% | Gunner Dominant Class ---------------- Mutant | -10/Materials Gunner | -10/Subcaves Resources | -11 -10 -10 ----------- Run | Yrd Mat Sub Matter Collected 748 | 194 340 214 Remotely . | . . . Salvage Created 871 | . 501 370 Parts 50 | . 37 13 Haulers Intercepted 2 | . 2 . Recyclers Shooed 1 | . 1 . Parts Field Recycled . | . . . Retrieved Matter . | . . . Parts Self-Destructed 6 | . . 6 Prevented . | . . . Parts Restored . | . . . Kills | -11 -10 -10 ------- Run | Yrd Mat Sub Combat Hostiles Destroyed 24 | . 15 9 Guns 16 | . 15 1 AOE 3 | . . 3 Classes Destroyed 7 | . 5 2 Builder 1 | . 1 . Hauler 2 | . 2 . Watcher 1 | . 1 . Swarmer 8 | . 8 . Grunt 7 | . 7 . Artisan 1 | . . 1 Subdweller 9 | . . 9 Best Kill Streak 7 | . 7 2 Combat Bots Only 7 | . 7 2 Max Kills in Single Turn 2 | . 2 2 Gunslinging 1 | . 1 . Exploded 2 | . . 2 Melee . | . . . Uniques/NPCs Destroyed . | . . . Combat | -11 -10 -10 -------- Run | Yrd Mat Sub Hostile Shots Fired 141 | . 96 45 Missed 38 | . 25 13 Hits 103 | . 71 32 Projectile 103 | . 71 32 Critical Strikes 3 | . 2 1 Damage Taken 1463 | . 674 789 Core 260 | . 141 119 Absorbed by Shields . | . . . Core Remaining (%) 100 | 100 . . Volleys Fired 75 | . 61 14 Largest 2 | . 2 2 Hottest 100 | . 100 56 Shots Fired 133 | . 114 19 Gun 122 | . 114 8 Cannon 2 | . . 2 Launcher 9 | . . 9 Special . | . . . Kinetic 27 | . 19 8 Thermal 95 | . 95 . Explosive 9 | . . 9 Electromagnetic 2 | . . 2 Robot Hit Streak 15 | . 11 15 Robot Miss Streak 3 | . 3 . Penetration Max . | . . . Secondary Targets 2 | . 2 . Max Gunslinging Chain 1 | . 1 . Shots Hit Robots 99 | . 70 29 Core Hits 38 | . 29 9 Critical Kills . | . . . Critical Parts Destroyed 2 | . . 2 Critical Strikes 7 | . 3 4 Burn 3 | . 3 . Smash 4 | . . 4 Melee Attacks 53 | . . 53 Impact 53 | . . 53 Slashing . | . . . Piercing . | . . . Sneak Attacks 1 | . . 1 Combat Hostiles . | . . . Follow-up Attacks . | . . . Damage Inflicted 2214 | . 894 1320 Guns 1019 | . 891 128 Cannons 38 | . . 38 Explosions 486 | . . 486 Melee 668 | . . 668 Ramming 3 | . 3 . Kinetic 265 | . 137 128 Thermal 754 | . 754 . Explosive 486 | . . 486 Electromagnetic 38 | . . 38 Impact 668 | . . 668 Slashing . | . . . Piercing . | . . . Highest Corruption . | . . . Average Corruption . | . . . Corruption Purged . | . . . Corruption Blocked . | . . . Overload Shots . | . . . Overflow Damage 177 | . . 177 Projectiles . | . . . Explosions . | . . . Melee 177 | . . 177 Knockbacks 5 | . . 5 Impact 5 | . . 5 Kinetic . | . . . Secondary . | . . . Self-Inflicted Damage 23 | . 1 22 Shots 1 | . . 1 Rammed 1 | . 1 . Targets Rammed 1 | . 1 . Kicked . | . . . Crushed . | . . . Highest Temperature 108 | . 108 . Average Temperature 27 | . 27 . Received Heat Transfer 333 | . 186 147 Siege Activations . | . . . Martial Activations . | . . . Shielding Activations . | . . . Robots Disrupted . | . . . Combat Hostiles . | . . . Robots Corrupted 6 | . . 6 Combat Hostiles 5 | . . 5 Parts Fried 4 | . . 4 Impact Corruptions 10 | . . 10 Robots Melted . | . . . Combat Hostiles . | . . . Parts Melted 8 | . 8 . Heat Transferred 2337 | . 2337 . Parts Sabotaged . | . . . Parts Stolen . | . . . Parts Stripped . | . . . Power Chain Reactions . | . . . Alert | -11 -10 -10 ------- Run | Yrd Mat Sub Maximum Alert Level . | . . . Low Security (%) 100 | 100 100 . Level 1 . | . . . Level 2 . | . . . Level 3 . | . . . Level 4 . | . . . Level 5 . | . . . High Security . | . . . Max Security . | . . . Peak Influence 157 | . 157 . Initial . | . . . Average 53 | . 56 . Influence Increases 427 | . 427 . Destroy 0b10 Robot/C 300 | . 300 . Destroy 0b10 Robot/NC 20 | . 20 . Destroy Leader 76 | . 76 . Disable Machine 15 | . 15 . Destroy Structure 1 | . 1 . Lose Combat Pursuer 15 | . 15 . Influence Decreases 427 | . 427 . Time Decay 387 | . 387 . Lost Part 40 | . 40 . Squads Dispatched 5 | . 5 . Investigation 2 | . 2 . Extermination . | . . . Reinforcement 3 | . 3 . Assault . | . . . Garrison . | . . . Intercept . | . . . Searches Triggered . | . . . Construction Impeded . | . . . Haulers Reinforced . | . . . Active Scanning Responses . | . . . Cargo Convoy Interrupts . | . . . Stealth | -11 -10 -10 --------- Run | Yrd Mat Sub Distress Signals 3 | . 3 . Communications Jammed . | . . . Distress Signals . | . . . Times Spotted 43 | . 32 11 Peak Tracking Total 9 | . 9 2 Tactical Retreats 1 | . 1 . Traps | -11 -10 -10 ------- Run | Yrd Mat Sub Traps Triggered 4 | . 2 2 Indirectly . | . . . Trap Hack Attempts . | . . . Triggered . | . . . Disarmed . | . . . Reprogrammed . | . . . Reused . | . . . Traps Extracted . | . . . Installed . | . . . Triggered . | . . . Machines | -11 -10 -10 ---------- Run | Yrd Mat Sub Machines Disabled 2 | . 1 1 Max in Single Turn 1 | . 1 1 Machines Repaired . | . . . Machines Dismantled . | . . . Machines Sabotaged . | . . . Overloaded Fab Kills . | . . . Hacking | -11 -10 -10 --------- Run | Yrd Mat Sub Machines Accessed 2 | . . 2 Terminals . | . . . Fabricators . | . . . Repair Stations . | . . . Recycling Units . | . . . Scanalyzers . | . . . Garrison Access . | . . . Total Hacks 6 | . . 6 Successful 6 | . . 6 Failed . | . . . Catastrophic . | . . . Database Lockouts . | . . . Manual . | . . . Terminals . | . . . Fabricators . | . . . Repair Stations . | . . . Recycling Units . | . . . Scanalyzers . | . . . Garrison Access . | . . . Terminal Hacks 6 | . . 6 Record 5 | . . 5 Proto ID Catalog 1 | . . 1 Fabricator Hacks . | . . . Repair Station Hacks . | . . . Recycling Unit Hacks . | . . . Scanalyzer . | . . . Garrison Access Hacks . | . . . Unauthorized Hacks . | . . . Terminals . | . . . Fabricators . | . . . Repair Stations . | . . . Recycling Units . | . . . Scanalyzers . | . . . Garrison Access . | . . . Data Cores Recovered . | . . . Used . | . . . Hacking Detections . | . . . Full Trace Events . | . . . Feedback Events . | . . . Feedback Blocked . | . . . Robot Schematics Acquired . | . . . Robots Built . | . . . Authchips . | . . . Time . | . . . Total Robot Build Rating . | . . . Part Schematics Acquired . | . . . Parts Built . | . . . Authchips . | . . . Time . | . . . Total Part Build Rating . | . . . Part Studies Acquired . | . . . Parts Repaired . | . . . Time . | . . . Parts Recycled . | . . . Recycled Matter . | . . . Retrieved Matter . | . . . Retrieved Components . | . . . Parts Scanalyzed . | . . . Part Schematics Acquired . | . . . Parts Damaged . | . . . Bothacking | -11 -10 -10 ------------ Run | Yrd Mat Sub Used RIF Installer . | . . . Robots Hacked . | . . . Non-combat . | . . . Combat . | . . . Robot Hacks Applied . | . . . Relay Couplers Released . | . . . Fabnet Peak Effective % . | . . . Robots Rewired . | . . . Allies Hacked . | . . . Hacks Repelled . | . . . Allies | -11 -10 -10 -------- Run | Yrd Mat Sub Total Allies . | . . . Largest Group . | . . . Highest-Rated Group . | . . . Highest-Rated Ally . | . . . Total Orders . | . . . Ally Attacks . | . . . Total Damage . | . . . Kills . | . . . Allies Corrupted . | . . . Allies Melted . | . . . Intel | -11 -10 -10 ------- Run | Yrd Mat Sub Active Infowar (turns) . | . . . Robot Analysis Total . | . . . Derelict Logs Recovered 2 | . . 2 Drone Launches . | . . . Drone Recoveries . | . . . Exploration | -11 -10 -10 ------------- Run | Yrd Mat Sub Turns Passed 3511 | 73 1395 2043 Spaces Moved 2360 | 57 752 1551 Core 17 | 17 . . Treads . | . . . Legs 111 | 40 71 . Wheels 2232 | . 681 1551 Hover . | . . . Flight . | . . . Fastest Speed 50 | 50 105 115 Average Speed 116 | 99 116 116 Slowest Speed 145 | 120 145 145 Overloaded Moves . | . . . Propulsion Burnouts . | . . . Robots Hopped . | . . . Potential Cave-ins . | . . . Cave-ins Triggered . | . . . Exploration Rate (%) 62 | 3 97 86 Regions Visited 2 Branch Regions 1 Pre-discovered Areas . | . . . Known Exits Taken . | . . . Unknown Exits Taken 2 | 1 1 . Scrap Searched 16 | . . 16 Spaces Dug . | . . . Terrain Destroyed 49 | . . 49 Melee . | . . . Projectile . | . . . AOE 49 | . . 49 Terrain Rammed . | . . . Walls Destroyed . | . . . Machines Disabled . | . . . Actions | -11 -10 -10 --------- Run | Yrd Mat Sub Total 2905 | 71 1155 1679 Wait 321 | . 290 31 Move 2358 | 56 751 1551 Hop . | . . . Pick Up 43 | 8 27 8 Fast Attach 7 | 4 2 1 Attach 9 | 2 3 4 Detach . | . . . Swap 17 | 1 8 8 Drop 21 | . 12 9 Fire 75 | . 61 14 Melee 53 | . . 53 Ram 1 | . 1 . Kick . | . . . Crush . | . . . Escape Stasis . | . . . Rewire . | . . . Trap . | . . . Miscellaneous . | . . . Route ------- -11/Scrapyard -10/Materials (discovered 6 exits: [*Mat x3] / [*Min x2] / *Sub) -10/Subcaves (discovered 4 exits: [*Mat x2] / Rec / [*Scr]) History --------- Turn | Location | Event 13 | -11/Scrapyard | Discovered new exit (range 16) 74 | -11/Scrapyard | Entered Materials 287 | -10/Materials | Discovered new exit (range 4) 302 | -10/Materials | Build established: Mutant 440 | -10/Materials | Lost 3 parts (1p1n1w) 447 | -10/Materials | Destroyed 7 combat bots 526 | -10/Materials | Discovered new exit (range 5) 634 | -10/Materials | Discovered new exit (range 6) 643 | -10/Materials | Core integrity fell below 50% 718 | -10/Materials | Discovered new exit (range 7) 1058 | -10/Materials | Discovered new exit (range 8) 1456 | -10/Materials | Discovered new exit (range 7) 1469 | -10/Materials | Entered Subcaves 1470 | -10/Subcaves | Approached by a straggling Scientist 1577 | -10/Subcaves | Shifting Twisted Machinery released Battle Rifle 1577 | -10/Subcaves | Scientist uncovered a shortcut to Scraptown 1693 | -10/Subcaves | Shifting Twisted Machinery released Mak. Power Source 1980 | -10/Subcaves | Visited 4L-MR0's lab 1993 | -10/Subcaves | Found Gun Armor 2040 | -10/Subcaves | Discovered new exit (range 15) 2243 | -10/Subcaves | Disturbed a concealed Subdweller 2289 | -10/Subcaves | Attached Gun Armor, gained temporary slots: Weapon x2 2597 | -10/Subcaves | Build established: Gunner 2776 | -10/Subcaves | Identified exit to Recycling 2781 | -10/Subcaves | Shifting Twisted Machinery released Shrapnel Trap 2782 | -10/Subcaves | Shifting Twisted Machinery released Barrage Gun 2924 | -10/Subcaves | Disturbed a concealed Subdweller 3110 | -10/Subcaves | Visited Clippyterm 3113 | -10/Subcaves | Learned Research machine intel 3113 | -10/Subcaves | Learned Factory garrison access intel 3151 | -10/Subcaves | Discovered new exit (range 13) 3395 | -10/Subcaves | Core integrity fell below 20% 3512 | -10/Subcaves | Destroyed by AH-RKE(R) with Subdweller Laser Last Messages --------------- 03401_ Found Sub. Laser. 03401_ Found 61 Matter. 03404_ Searching scrap... 03404_ Found Battle Rifle. 03404_ Found 37 Matter. 03405_ Searching scrap... 03405_ Found Mak. Light Armor Plating. 03405_ Found Sub. Optics. 03405_ Found 66 Matter. 03408_ Searching scrap... 03408_ Found Sub. Laser. 03408_ Found 66 Matter. 03411_ Searching scrap... 03411_ Found Sub. Power Source. 03411_ Found Mak. System Shield. 03411_ Found 58 Matter. 03413_ Searching scrap... 03413_ Found Sub. Shrapnel Launcher. 03413_ Found Riot Gun. 03413_ Found 70 Matter. Map ----- +----------------------------------------------------+ | ?????????????????????????????????? ?????????????? | | ????????????????????????????????? ????????????? | | ?????????????????????????????????? ###?????????? | | ??????????????????????????????????? ###??????? | | ???????????????????????????????????? ??????? | | ????????????????????????????????????# ??????? | | ????????????????????????????????????# #??????? | | ???????????????????????????????????## ##?????? | | ???????????????????????????????????# #?##### | | ????????????????????????????????????# ### | | ?????????????????????? ?????????????# ## | | ????????????????????? ?????????????# | | ????????????????????? ?????????????# | | ????????????????????## ?????????????# # | | ???????????????????## ????????????# # | | ???????????????????# RR ????????????# | | ??????????????????## ?????????#### | | ??????????????????# ?????????# ### | | ??????????????????# ?????????# #### | | ??????????????????# ?????????# ## | | ???????????????????# ?????????# | | ???????????????????# ###???##### | | ???????????????????# #???# ### | | ???????????????????# ##### ## | | ????????????????????## | | ????????????????????# @ ### | | ????????????????????# ## ##?# # | | ????????????????????## ####### ##??# ## | | ?????????????????????###??????########???#######? | | ????????????????????????????????????????????????? | | ????????????????????????????????????????????????? | | ????????????????????????????????????????????????? | | ????????????????????????????????????????????????? | | ????????????????????????????????????????????????? | | ????????????????????????????????????????????????? | | ????????????????????????????????????????????????? | | ????????????????????????????????????????????????? | | ????????????????????????????????????????????????? | | ????????????????????????????????????????????????? | | ????????????????????????????????????????????????? | | ????????????????????????????????????????????????? | | ????????????????????????????????????????????????? | | ????????????????????????????????????????????????? | | ????????????????????????????????????????????????? | | | | | | | | | | | | | +----------------------------------------------------+ Best States ------------- Heat Dissipation 35 Energy Generation 15 Energy Capacity 250 Matter Stores 300 Matter Capacity 300 Sight Range 16 Terrain Scan Density 10 Armor Coverage 60 Evasion (%) 55 Item Schematics ----------------- None Robot Schematics ------------------ None Fabricated ------------ Nothing Repaired ---------- Nothing Studied --------- None Alien Tech Used ----------------- None Achievements -------------- Art Critic Overwhelming Challenges ------------ None Game ------ Seed ThunderEnergyRecalibrator Manual? 0 Play Time 00:22:58 Cumulative 274.4 hours Start 2025.10.26 @ 20:18:29 End 2025.10.26 @ 21:07:15 Sessions 1 Manual Loads 0 Difficulty Rogue Special Mode None Game No. 436 Rogue 436 Adventurer 0 Explorer 0 Win Type - Total 1 Types 1/0/0/0/0/0/0/0/0/0 Lore% 64 Gallery% 62 Achievement% 26 Wizard Run 0 Options --------- Layout 1 ASCII 0 Keyboard 0 Movement Mouse Keybinds 0 Fullscreen 2 Font 24/Smallcaps Map View 50x35 Zoom Use 0% Tactical HUD 1 Map Filters NONE Filters NONE Steam 1 RUN: ec689978-ebc3-4d75-84f6-59198fb1e078